[Event "Late-Titled-Tuesday-Blitz-September-05-2023"]
[Site "Chess.com"]
[Date "2023.09.05"]
[Round "8"]
[White "Malev212"]
[Black "newyorkmouse"]
[Result "0-1"]
[WhiteElo "2622"]
[BlackElo "2474"]
[TimeControl "180+1"]
[EndTime "15:29:01 PDT"]
[Termination "newyorkmouse won on time"]

1. e4 {[%clk 0:02:54.1]} 1... c6 {[%clk 0:02:54.8]} 2. d4 {[%clk 0:02:51.8]}
2... Na6 {[%clk 0:02:54.9]} 3. Nc3 {[%clk 0:02:50.1]} 3... Nc7 {[%clk
0:02:54.8]} 4. f4 {[%clk 0:02:50.1]} 4... g6 {[%clk 0:02:54.7]} 5. Nf3 {[%clk
0:02:49]} 5... Bg7 {[%clk 0:02:54.8]} 6. h4 {[%clk 0:02:46.9]} 6... d5 {[%clk
0:02:51.9]} 7. h5 {[%clk 0:02:44.8]} 7... dxe4 {[%clk 0:02:51.6]} 8. Nxe4 {[%clk
0:02:42.9]} 8... Bg4 {[%clk 0:02:51.8]} 9. c3 {[%clk 0:02:41.6]} 9... Bxh5
{[%clk 0:02:49.2]} 10. Bc4 {[%clk 0:02:40.6]} 10... Nf6 {[%clk 0:02:43.7]} 11.
Neg5 {[%clk 0:02:34.5]} 11... Ncd5 {[%clk 0:02:40]} 12. Rxh5 {[%clk 0:02:29.3]}
12... Nxh5 {[%clk 0:02:39.4]} 13. Ne5 {[%clk 0:02:28.8]} 13... O-O {[%clk
0:02:38.8]} 14. Qf3 {[%clk 0:02:16.6]} 14... h6 {[%clk 0:02:23]} 15. Ne4 {[%clk
0:02:01.9]} 15... Nhf6 {[%clk 0:02:15.7]} 16. f5 {[%clk 0:01:51.8]} 16... Nxe4
{[%clk 0:02:11.3]} 17. Qxe4 {[%clk 0:01:51.2]} 17... Nb6 {[%clk 0:01:55.4]} 18.
Bb3 {[%clk 0:01:41.4]} 18... g5 {[%clk 0:01:45]} 19. Ng6 {[%clk 0:01:27.4]}
19... a5 {[%clk 0:01:03.3]} 20. Bxg5 {[%clk 0:01:02]} 20... Nd5 {[%clk
0:00:42.3]} 21. Bxd5 {[%clk 0:00:52.5]} 21... cxd5 {[%clk 0:00:42.2]} 22. Nxe7+
{[%clk 0:00:52]} 22... Kh8 {[%clk 0:00:28.9]} 23. Qh4 {[%clk 0:00:51.6]} 23...
f6 {[%clk 0:00:15.8]} 24. Ng6+ {[%clk 0:00:44.2]} 24... Kh7 {[%clk 0:00:16.1]}
25. Be3 {[%clk 0:00:42.5]} 25... Re8 {[%clk 0:00:15.4]} 26. Kd2 {[%clk 0:00:42]}
26... Qb6 {[%clk 0:00:13.4]} 27. b3 {[%clk 0:00:39.7]} 27... Re4 {[%clk
0:00:10.2]} 28. Qh5 {[%clk 0:00:34]} 28... Rae8 {[%clk 0:00:10.2]} 29. Re1
{[%clk 0:00:32.7]} 29... a4 {[%clk 0:00:10.4]} 30. b4 {[%clk 0:00:32.1]} 30...
Qc7 {[%clk 0:00:09.8]} 31. Bf4 {[%clk 0:00:28.4]} 31... Qc4 {[%clk 0:00:04.9]}
32. Rxe4 {[%clk 0:00:13.6]} 32... Rxe4 {[%clk 0:00:05.2]} 0-1

[Event "Late-Titled-Tuesday-Blitz-September-05-2023"]
[Site "Chess.com"]
[Date "2023.09.05"]
[Round "8"]
[White "zeitnot2006"]
[Black "Michalczak"]
[Result "1-0"]
[WhiteElo "2751"]
[BlackElo "2511"]
[TimeControl "180+1"]
[EndTime "15:29:03 PDT"]
[Termination "zeitnot2006 won on time"]

1. e4 {[%clk 0:03:00.9]} 1... e5 {[%clk 0:02:59.8]} 2. Nc3 {[%clk 0:03:00.2]}
2... Nf6 {[%clk 0:02:59.7]} 3. g3 {[%clk 0:03:00.3]} 3... d5 {[%clk 0:02:58.9]}
4. exd5 {[%clk 0:03:01.2]} 4... Nxd5 {[%clk 0:02:59.4]} 5. Bg2 {[%clk
0:03:01.9]} 5... Nxc3 {[%clk 0:02:59.9]} 6. bxc3 {[%clk 0:03:02.5]} 6... Nc6
{[%clk 0:02:59.6]} 7. Ne2 {[%clk 0:03:02]} 7... Be6 {[%clk 0:02:59.6]} 8. Rb1
{[%clk 0:03:00.3]} 8... Bd5 {[%clk 0:02:58]} 9. O-O {[%clk 0:02:54.6]} 9... Bxg2
{[%clk 0:02:55.7]} 10. Kxg2 {[%clk 0:02:55.5]} 10... Qd5+ {[%clk 0:02:55.6]} 11.
f3 {[%clk 0:02:56.2]} 11... O-O-O {[%clk 0:02:54.6]} 12. d3 {[%clk 0:02:52.7]}
12... h5 {[%clk 0:02:43.2]} 13. c4 {[%clk 0:02:50.8]} 13... Qe6 {[%clk
0:02:37.6]} 14. h3 {[%clk 0:02:47.4]} 14... Be7 {[%clk 0:02:34.5]} 15. Be3
{[%clk 0:02:46]} 15... g5 {[%clk 0:02:33.1]} 16. Nc3 {[%clk 0:02:39.7]} 16... f5
{[%clk 0:02:25.9]} 17. Bf2 {[%clk 0:02:33.4]} 17... g4 {[%clk 0:02:18.6]} 18.
fxg4 {[%clk 0:02:31.4]} 18... hxg4 {[%clk 0:02:17.2]} 19. h4 {[%clk 0:02:31.1]}
19... f4 {[%clk 0:02:17.6]} 20. Nd5 {[%clk 0:02:27.4]} 20... Bxh4 {[%clk
0:01:44.4]} 21. gxh4 {[%clk 0:02:24.4]} 21... g3 {[%clk 0:01:44.9]} 22. Bxg3
{[%clk 0:02:05.6]} 22... Rdg8 {[%clk 0:01:35]} 23. Nxf4 {[%clk 0:01:58.9]} 23...
Rxg3+ {[%clk 0:01:10.5]} 24. Kxg3 {[%clk 0:01:57.1]} 24... exf4+ {[%clk
0:01:10.3]} 25. Rxf4 {[%clk 0:01:53.5]} 25... Rg8+ {[%clk 0:01:02.6]} 26. Kh2
{[%clk 0:01:25.5]} 26... Nd4 {[%clk 0:00:40.5]} 27. Qf1 {[%clk 0:01:11]} 27...
Qd6 {[%clk 0:00:32.2]} 28. c5 {[%clk 0:00:41.3]} 28... Qxc5 {[%clk 0:00:16.9]}
29. Re1 {[%clk 0:00:30.4]} 29... Qxc2+ {[%clk 0:00:14.2]} 30. Qf2 {[%clk
0:00:29.7]} 30... Qxf2+ {[%clk 0:00:06.3]} 31. Rxf2 {[%clk 0:00:29]} 31... Nc6
{[%clk 0:00:06.3]} 32. Kh3 {[%clk 0:00:25.6]} 32... Rh8 {[%clk 0:00:07.2]} 33.
Kg4 {[%clk 0:00:22.9]} 33... Nd4 {[%clk 0:00:07.6]} 34. h5 {[%clk 0:00:21.2]}
34... c5 {[%clk 0:00:08.1]} 35. Kg5 {[%clk 0:00:20.5]} 35... b6 {[%clk
0:00:07.6]} 36. h6 {[%clk 0:00:20.6]} 36... Rg8+ {[%clk 0:00:07.3]} 37. Kh5
{[%clk 0:00:20.6]} 37... Rg3 {[%clk 0:00:05]} 38. h7 {[%clk 0:00:19.7]} 38...
Rh3+ {[%clk 0:00:03.7]} 39. Kg6 {[%clk 0:00:19.7]} 39... Kb7 {[%clk 0:00:02.2]}
40. Re8 {[%clk 0:00:16.5]} 40... Rg3+ {[%clk 0:00:01.9]} 41. Kf6 {[%clk
0:00:15.5]} 1-0

[Event "Late-Titled-Tuesday-Blitz-September-05-2023"]
[Site "Chess.com"]
[Date "2023.09.05"]
[Round "8"]
[White "TigrVShlyape"]
[Black "GM_dmitrij"]
[Result "0-1"]
[WhiteElo "2882"]
[BlackElo "3040"]
[TimeControl "180+1"]
[EndTime "15:29:04 PDT"]
[Termination "GM_dmitrij won on time"]

1. d4 {[%clk 0:03:00.9]} 1... d5 {[%clk 0:02:57.5]} 2. Bf4 {[%clk 0:03:01]} 2...
Nf6 {[%clk 0:02:55.7]} 3. e3 {[%clk 0:03:01.3]} 3... c5 {[%clk 0:02:54.7]} 4. c3
{[%clk 0:03:01.4]} 4... Nc6 {[%clk 0:02:53.5]} 5. Nd2 {[%clk 0:03:01.3]} 5...
Bf5 {[%clk 0:02:52.9]} 6. Ngf3 {[%clk 0:02:55.9]} 6... e6 {[%clk 0:02:51.4]} 7.
Bb5 {[%clk 0:02:55]} 7... Nd7 {[%clk 0:02:42.2]} 8. O-O {[%clk 0:02:48.9]} 8...
Be7 {[%clk 0:02:41.7]} 9. dxc5 {[%clk 0:02:48.6]} 9... Bxc5 {[%clk 0:02:21.4]}
10. Nd4 {[%clk 0:02:47.7]} 10... Qb6 {[%clk 0:02:06.4]} 11. Qa4 {[%clk
0:02:37.1]} 11... Bxd4 {[%clk 0:01:57.8]} 12. exd4 {[%clk 0:02:28]} 12... a6
{[%clk 0:01:54.5]} 13. Bxc6 {[%clk 0:02:07.8]} 13... bxc6 {[%clk 0:01:43]} 14.
Bd6 {[%clk 0:01:59.8]} 14... f6 {[%clk 0:01:34.8]} 15. Rfe1 {[%clk 0:01:56.1]}
15... Kf7 {[%clk 0:01:34.7]} 16. c4 {[%clk 0:01:52.5]} 16... dxc4 {[%clk
0:01:18]} 17. Qxc4 {[%clk 0:01:44.4]} 17... Qxb2 {[%clk 0:01:10.7]} 18. Qxc6
{[%clk 0:01:39.3]} 18... Qb5 {[%clk 0:01:10.9]} 19. Qf3 {[%clk 0:01:35.9]} 19...
Qd3 {[%clk 0:01:10.5]} 20. Qxd3 {[%clk 0:00:48.5]} 20... Bxd3 {[%clk 0:01:11.4]}
21. Re3 {[%clk 0:00:48.4]} 21... Bf5 {[%clk 0:01:06.6]} 22. Nc4 {[%clk
0:00:47.1]} 22... g5 {[%clk 0:00:44.5]} 23. Bc7 {[%clk 0:00:34.4]} 23... Kg6
{[%clk 0:00:41.1]} 24. Nd6 {[%clk 0:00:33.9]} 24... h5 {[%clk 0:00:28.6]} 25. h3
{[%clk 0:00:31.1]} 25... Rh7 {[%clk 0:00:24.6]} 26. Rae1 {[%clk 0:00:25.5]}
26... Ra7 {[%clk 0:00:16]} 27. Ba5 {[%clk 0:00:24]} 27... h4 {[%clk 0:00:13.4]}
28. f3 {[%clk 0:00:16.4]} 28... Ra8 {[%clk 0:00:12.2]} 29. Rb3 {[%clk
0:00:11.8]} 29... Rb8 {[%clk 0:00:11.7]} 30. Kf2 {[%clk 0:00:09.1]} 30... e5
{[%clk 0:00:10]} 31. d5 {[%clk 0:00:07.4]} 31... Rxb3 {[%clk 0:00:09.1]} 32.
axb3 {[%clk 0:00:07.1]} 32... Nc5 {[%clk 0:00:10]} 33. Re3 {[%clk 0:00:06.6]}
33... Rd7 {[%clk 0:00:09.3]} 34. Ne4 {[%clk 0:00:03.2]} 34... Rxd5 {[%clk
0:00:07.8]} 35. Nxc5 {[%clk 0:00:02.3]} 35... Rxc5 {[%clk 0:00:08.7]} 36. Re2
{[%clk 0:00:02.1]} 36... Bd3 {[%clk 0:00:07.9]} 37. Rd2 {[%clk 0:00:02.1]} 37...
Bb5 {[%clk 0:00:08.4]} 38. Bb4 {[%clk 0:00:01.1]} 38... Rc1 {[%clk 0:00:08.5]}
0-1

[Event "Late-Titled-Tuesday-Blitz-September-05-2023"]
[Site "Chess.com"]
[Date "2023.09.05"]
[Round "8"]
[White "Alohamora11"]
[Black "Rud_Makarian"]
[Result "0-1"]
[WhiteElo "2579"]
[BlackElo "2950"]
[TimeControl "180+1"]
[EndTime "15:29:04 PDT"]
[Termination "Rud_Makarian won by resignation"]

1. e4 {[%clk 0:03:00.9]} 1... c5 {[%clk 0:02:59.2]} 2. Nf3 {[%clk 0:03:01]} 2...
Nc6 {[%clk 0:02:59.7]} 3. d4 {[%clk 0:03:00.8]} 3... cxd4 {[%clk 0:03:00.6]} 4.
Nxd4 {[%clk 0:03:01.7]} 4... e6 {[%clk 0:03:01.3]} 5. Nc3 {[%clk 0:03:01.5]}
5... Qc7 {[%clk 0:03:01.9]} 6. Nb3 {[%clk 0:03:00]} 6... Nf6 {[%clk 0:03:01.2]}
7. g3 {[%clk 0:03:00.2]} 7... h5 {[%clk 0:02:57.2]} 8. Bf4 {[%clk 0:02:54.3]}
8... e5 {[%clk 0:02:47.5]} 9. Bg5 {[%clk 0:02:53.3]} 9... Bb4 {[%clk 0:02:48.1]}
10. Bxf6 {[%clk 0:02:42]} 10... Bxc3+ {[%clk 0:02:46.9]} 11. bxc3 {[%clk
0:02:41.3]} 11... gxf6 {[%clk 0:02:47.8]} 12. h4 {[%clk 0:02:21.9]} 12... d6
{[%clk 0:02:48.2]} 13. Be2 {[%clk 0:02:21]} 13... Be6 {[%clk 0:02:43.2]} 14.
Bxh5 {[%clk 0:02:19]} 14... Na5 {[%clk 0:02:42.9]} 15. Nxa5 {[%clk 0:02:14.5]}
15... Qxc3+ {[%clk 0:02:40.6]} 16. Kf1 {[%clk 0:02:14.8]} 16... Qxa5 {[%clk
0:02:40.1]} 17. Bg4 {[%clk 0:02:09.2]} 17... Ke7 {[%clk 0:02:39.6]} 18. Bxe6
{[%clk 0:02:05.6]} 18... fxe6 {[%clk 0:02:40.5]} 19. Qd3 {[%clk 0:01:54.7]}
19... Rac8 {[%clk 0:02:34]} 20. Rd1 {[%clk 0:01:44.7]} 20... Qa6 {[%clk
0:02:29.4]} 21. Qxa6 {[%clk 0:01:24.9]} 21... bxa6 {[%clk 0:02:30.3]} 22. Rb1
{[%clk 0:01:25.6]} 22... Rc7 {[%clk 0:02:22]} 23. Rb2 {[%clk 0:01:22.3]} 23...
d5 {[%clk 0:02:21]} 24. Rb4 {[%clk 0:00:36.6]} 24... Rxc2 {[%clk 0:02:10.8]} 25.
Rb7+ {[%clk 0:00:31.4]} 25... Kd6 {[%clk 0:02:11]} 26. Rxa7 {[%clk 0:00:31.8]}
26... Rxa2 {[%clk 0:01:33.7]} 27. Kg2 {[%clk 0:00:27.1]} 27... f5 {[%clk
0:01:05]} 28. Rb1 {[%clk 0:00:19.6]} 28... fxe4 {[%clk 0:00:57.3]} 29. Rb6+
{[%clk 0:00:17]} 29... Kc5 {[%clk 0:00:57.1]} 30. Raxa6 {[%clk 0:00:15.2]} 30...
Rxa6 {[%clk 0:00:52.1]} 31. Rxa6 {[%clk 0:00:16.1]} 31... d4 {[%clk 0:00:44.4]}
32. Rxe6 {[%clk 0:00:14.2]} 32... Kd5 {[%clk 0:00:44.9]} 33. Re7 {[%clk
0:00:13.4]} 33... e3 {[%clk 0:00:35.1]} 34. f4 {[%clk 0:00:11]} 34... exf4
{[%clk 0:00:34]} 35. gxf4 {[%clk 0:00:11.6]} 35... Rxh4 {[%clk 0:00:33.6]} 36.
Kf3 {[%clk 0:00:10.5]} 36... Rh3+ {[%clk 0:00:33.5]} 37. Kg4 {[%clk 0:00:06.6]}
37... Rh1 {[%clk 0:00:33.4]} 38. f5 {[%clk 0:00:06.1]} 38... Rg1+ {[%clk
0:00:31.8]} 39. Kf4 {[%clk 0:00:05.5]} 39... Rf1+ {[%clk 0:00:32.7]} 40. Kg5
{[%clk 0:00:05.4]} 40... Kc4 {[%clk 0:00:33.2]} 41. Rc7+ {[%clk 0:00:05.4]}
41... Kd3 {[%clk 0:00:30.5]} 42. Rc1 {[%clk 0:00:05.6]} 0-1

[Event "Late-Titled-Tuesday-Blitz-September-05-2023"]
[Site "Chess.com"]
[Date "2023.09.05"]
[Round "8"]
[White "HajiyevKanan"]
[Black "CFalcons8"]
[Result "0-1"]
[WhiteElo "2458"]
[BlackElo "2331"]
[TimeControl "180+1"]
[EndTime "15:29:04 PDT"]
[Termination "CFalcons8 won on time"]

1. d4 {[%clk 0:01:48.1]} 1... Nf6 {[%clk 0:02:59.2]} 2. Nf3 {[%clk 0:01:49]}
2... e6 {[%clk 0:02:53.8]} 3. c4 {[%clk 0:01:49.9]} 3... d5 {[%clk 0:02:51.6]}
4. cxd5 {[%clk 0:01:50]} 4... exd5 {[%clk 0:02:35.2]} 5. Nc3 {[%clk 0:01:50.9]}
5... Bb4 {[%clk 0:02:33.5]} 6. Qa4+ {[%clk 0:01:46.3]} 6... Nc6 {[%clk
0:02:18.7]} 7. Bg5 {[%clk 0:01:46.1]} 7... O-O {[%clk 0:02:17.7]} 8. a3 {[%clk
0:01:44.3]} 8... Bxc3+ {[%clk 0:02:16.2]} 9. bxc3 {[%clk 0:01:45.2]} 9... h6
{[%clk 0:02:16.5]} 10. Bf4 {[%clk 0:01:42.4]} 10... Ne4 {[%clk 0:02:07.8]} 11.
Rc1 {[%clk 0:01:38.6]} 11... a6 {[%clk 0:02:02.8]} 12. h4 {[%clk 0:01:37.7]}
12... b5 {[%clk 0:02:00.6]} 13. Qc2 {[%clk 0:01:37]} 13... Bf5 {[%clk
0:01:58.4]} 14. Qa2 {[%clk 0:01:30.1]} 14... Na5 {[%clk 0:01:51.8]} 15. e3
{[%clk 0:01:29.9]} 15... c5 {[%clk 0:01:37.5]} 16. Be2 {[%clk 0:01:26.5]} 16...
c4 {[%clk 0:01:34.8]} 17. Ne5 {[%clk 0:01:23.3]} 17... Nb3 {[%clk 0:01:15.1]}
18. Rc2 {[%clk 0:01:20.4]} 18... Qa5 {[%clk 0:00:58.5]} 19. Nc6 {[%clk
0:01:08.3]} 19... Nxc3 {[%clk 0:00:55.1]} 20. Nxa5 {[%clk 0:00:59.3]} 20... Nxa2
{[%clk 0:00:54.8]} 21. Rxa2 {[%clk 0:00:53.2]} 21... Nxa5 {[%clk 0:00:53.6]} 22.
g4 {[%clk 0:00:53.4]} 22... Bh7 {[%clk 0:00:46.5]} 23. g5 {[%clk 0:00:53.2]}
23... c3 {[%clk 0:00:39.4]} 24. gxh6 {[%clk 0:00:51.7]} 24... c2 {[%clk
0:00:23.6]} 25. Kd2 {[%clk 0:00:43.2]} 25... Nb3+ {[%clk 0:00:20.7]} 26. Kc3
{[%clk 0:00:43.5]} 26... c1=Q+ {[%clk 0:00:20.3]} 27. Rxc1 {[%clk 0:00:42.6]}
27... Nxc1 {[%clk 0:00:21.2]} 28. Rd2 {[%clk 0:00:38.4]} 28... Rfc8+ {[%clk
0:00:19.2]} 29. Kb2 {[%clk 0:00:37.9]} 29... Nxe2 {[%clk 0:00:17.9]} 30. Rxe2
{[%clk 0:00:38.1]} 30... gxh6 {[%clk 0:00:18.5]} 31. Bxh6 {[%clk 0:00:37.8]}
31... Rc4 {[%clk 0:00:18.7]} 32. f4 {[%clk 0:00:36.1]} 32... Bg6 {[%clk
0:00:16.1]} 33. Rg2 {[%clk 0:00:32.8]} 33... Kh7 {[%clk 0:00:15.3]} 34. Bg5
{[%clk 0:00:33.3]} 34... Rac8 {[%clk 0:00:14]} 35. Kb3 {[%clk 0:00:20.9]} 35...
Bc2+ {[%clk 0:00:11.4]} 36. Kb2 {[%clk 0:00:20.4]} 36... Be4 {[%clk 0:00:12]}
37. Rg3 {[%clk 0:00:18.3]} 37... Rc2+ {[%clk 0:00:12.6]} 38. Kb3 {[%clk
0:00:18.9]} 38... a5 {[%clk 0:00:12.8]} 0-1

[Event "Late-Titled-Tuesday-Blitz-September-05-2023"]
[Site "Chess.com"]
[Date "2023.09.05"]
[Round "8"]
[White "Beca95"]
[Black "BeanScreen"]
[Result "1-0"]
[WhiteElo "2962"]
[BlackElo "2702"]
[TimeControl "180+1"]
[EndTime "15:29:09 PDT"]
[Termination "Beca95 won by checkmate"]

1. d4 {[%clk 0:03:00.9]} 1... d5 {[%clk 0:03:00.2]} 2. c4 {[%clk 0:02:59.3]}
2... e6 {[%clk 0:03:00.8]} 3. Nf3 {[%clk 0:02:59.8]} 3... a6 {[%clk 0:03:00.6]}
4. cxd5 {[%clk 0:02:57.6]} 4... exd5 {[%clk 0:03:01.5]} 5. Nc3 {[%clk
0:02:57.7]} 5... h6 {[%clk 0:03:02]} 6. Bf4 {[%clk 0:02:57.7]} 6... Nf6 {[%clk
0:03:01.7]} 7. e3 {[%clk 0:02:56.4]} 7... Bd6 {[%clk 0:03:01.7]} 8. Bg3 {[%clk
0:02:57]} 8... O-O {[%clk 0:02:59.1]} 9. Bd3 {[%clk 0:02:54.9]} 9... Nc6 {[%clk
0:02:58.5]} 10. a3 {[%clk 0:02:50.9]} 10... Ne7 {[%clk 0:02:58.1]} 11. Qc2
{[%clk 0:02:51]} 11... g6 {[%clk 0:02:57.7]} 12. Bh4 {[%clk 0:02:41.6]} 12...
Nf5 {[%clk 0:02:51.4]} 13. Bxf6 {[%clk 0:02:41]} 13... Qxf6 {[%clk 0:02:48.4]}
14. Nxd5 {[%clk 0:02:40.8]} 14... Qd8 {[%clk 0:02:44]} 15. Nc3 {[%clk
0:02:39.8]} 15... Nh4 {[%clk 0:02:24.5]} 16. Nxh4 {[%clk 0:02:34.5]} 16... Qxh4
{[%clk 0:02:25.4]} 17. Ne4 {[%clk 0:02:34.3]} 17... Re8 {[%clk 0:02:19.3]} 18.
Nxd6 {[%clk 0:02:33.2]} 18... Rxe3+ {[%clk 0:01:41.3]} 19. Kf1 {[%clk
0:02:32.4]} 19... Rxd3 {[%clk 0:01:41.5]} 20. Qxd3 {[%clk 0:02:30.2]} 20... cxd6
{[%clk 0:01:41.8]} 21. Re1 {[%clk 0:02:25.5]} 21... Bd7 {[%clk 0:01:40.2]} 22.
Kg1 {[%clk 0:02:22]} 22... Bb5 {[%clk 0:01:36.5]} 23. Qd2 {[%clk 0:02:22]} 23...
Rc8 {[%clk 0:01:32.8]} 24. f3 {[%clk 0:02:22.2]} 24... Rc2 {[%clk 0:01:29.8]}
25. g3 {[%clk 0:01:12.8]} 25... Rxd2 {[%clk 0:01:07.8]} 26. gxh4 {[%clk
0:01:12.6]} 26... Rxb2 {[%clk 0:01:02.3]} 27. h5 {[%clk 0:01:12.6]} 27... Ra2
{[%clk 0:00:46.3]} 28. hxg6 {[%clk 0:01:10.5]} 28... fxg6 {[%clk 0:00:46.3]} 29.
h4 {[%clk 0:01:10.7]} 29... Rxa3 {[%clk 0:00:45.9]} 30. Kf2 {[%clk 0:01:10.8]}
30... Kf7 {[%clk 0:00:42.5]} 31. Re3 {[%clk 0:01:09.7]} 31... Ra2+ {[%clk
0:00:40.5]} 32. Kg3 {[%clk 0:01:09.5]} 32... Rd2 {[%clk 0:00:28.7]} 33. Rhe1
{[%clk 0:01:07.4]} 33... Rxd4 {[%clk 0:00:11.4]} 34. Re7+ {[%clk 0:01:07.4]}
34... Kf6 {[%clk 0:00:08.9]} 35. R1e6+ {[%clk 0:01:07.9]} 35... Kf5 {[%clk
0:00:09.1]} 36. Re3 {[%clk 0:01:08.4]} 36... Kf6 {[%clk 0:00:06.8]} 37. Rxb7
{[%clk 0:01:07.7]} 37... g5 {[%clk 0:00:06.7]} 38. h5 {[%clk 0:01:06.9]} 38...
Rd1 {[%clk 0:00:05.9]} 39. Rh7 {[%clk 0:01:04.5]} 39... Rg1+ {[%clk 0:00:06]}
40. Kf2 {[%clk 0:01:04.4]} 40... Rf1+ {[%clk 0:00:06.1]} 41. Kg2 {[%clk
0:01:03.8]} 41... Rd1 {[%clk 0:00:05.9]} 42. Rxh6+ {[%clk 0:01:03.4]} 42... Kf5
{[%clk 0:00:06.5]} 43. Re7 {[%clk 0:00:58.9]} 43... g4 {[%clk 0:00:05.5]} 44.
fxg4+ {[%clk 0:00:57.9]} 44... Kxg4 {[%clk 0:00:05.6]} 45. Rg7+ {[%clk
0:00:57.4]} 45... Kh4 {[%clk 0:00:05.2]} 46. Rh8 {[%clk 0:00:49.2]} 46... a5
{[%clk 0:00:05]} 47. h6 {[%clk 0:00:48.9]} 47... a4 {[%clk 0:00:04.7]} 48. h7
{[%clk 0:00:48.9]} 48... Bc6+ {[%clk 0:00:04.4]} 49. Kf2 {[%clk 0:00:48.5]}
49... Rd2+ {[%clk 0:00:04.6]} 50. Ke3 {[%clk 0:00:48.4]} 50... Rb2 {[%clk
0:00:04.3]} 51. Rhg8 {[%clk 0:00:45.7]} 51... Rb3+ {[%clk 0:00:04.4]} 52. Kd2
{[%clk 0:00:45.6]} 52... Rb2+ {[%clk 0:00:03.2]} 53. Kc1 {[%clk 0:00:45.8]}
53... Rb5 {[%clk 0:00:02.8]} 54. h8=R+ {[%clk 0:00:43.5]} 54... Rh5 {[%clk
0:00:02.2]} 55. Rxh5+ {[%clk 0:00:44.1]} 55... Kxh5 {[%clk 0:00:02]} 56. Rh8#
{[%clk 0:00:45]} 1-0

[Event "Late-Titled-Tuesday-Blitz-September-05-2023"]
[Site "Chess.com"]
[Date "2023.09.05"]
[Round "8"]
[White "Sibelephant"]
[Black "Durarbayli"]
[Result "1-0"]
[WhiteElo "3110"]
[BlackElo "2886"]
[TimeControl "180+1"]
[EndTime "15:29:12 PDT"]
[Termination "Sibelephant won on time"]

1. Nf3 {[%clk 0:02:59.6]} 1... c5 {[%clk 0:02:59.8]} 2. b3 {[%clk 0:02:58.5]}
2... d5 {[%clk 0:02:58.3]} 3. e3 {[%clk 0:02:57.2]} 3... a6 {[%clk 0:02:57.7]}
4. Bb2 {[%clk 0:02:56.1]} 4... Nc6 {[%clk 0:02:58.4]} 5. d4 {[%clk 0:02:56.4]}
5... Nf6 {[%clk 0:02:59]} 6. Be2 {[%clk 0:02:49.1]} 6... Bg4 {[%clk 0:02:47]} 7.
Nbd2 {[%clk 0:02:36.6]} 7... e6 {[%clk 0:02:45.1]} 8. O-O {[%clk 0:02:36.9]}
8... cxd4 {[%clk 0:02:26.3]} 9. Nxd4 {[%clk 0:02:36.5]} 9... Bxe2 {[%clk
0:02:26.2]} 10. Qxe2 {[%clk 0:02:36.9]} 10... Be7 {[%clk 0:02:25.7]} 11. c4
{[%clk 0:02:35.1]} 11... Nxd4 {[%clk 0:02:20.6]} 12. Bxd4 {[%clk 0:02:34.7]}
12... O-O {[%clk 0:02:10.8]} 13. Rad1 {[%clk 0:02:31]} 13... Qa5 {[%clk
0:02:07.1]} 14. cxd5 {[%clk 0:02:20.5]} 14... exd5 {[%clk 0:02:06.8]} 15. Bxf6
{[%clk 0:01:35.4]} 15... Bxf6 {[%clk 0:02:06.8]} 16. Nf3 {[%clk 0:01:35.8]}
16... Rac8 {[%clk 0:01:50.3]} 17. g3 {[%clk 0:01:28.7]} 17... g6 {[%clk
0:01:43.1]} 18. Rd3 {[%clk 0:01:23.3]} 18... Rc5 {[%clk 0:01:41.2]} 19. Rfd1
{[%clk 0:01:20.6]} 19... Rfc8 {[%clk 0:01:35.1]} 20. Kg2 {[%clk 0:01:17.9]}
20... Kg7 {[%clk 0:01:24.8]} 21. R1d2 {[%clk 0:01:05.9]} 21... Bc3 {[%clk
0:01:18.2]} 22. Rc2 {[%clk 0:01:05.9]} 22... Bf6 {[%clk 0:01:18.9]} 23. Qd2
{[%clk 0:00:53.8]} 23... Qa3 {[%clk 0:00:54.6]} 24. Rxc5 {[%clk 0:00:52]} 24...
Rxc5 {[%clk 0:00:51]} 25. Rxd5 {[%clk 0:00:42]} 25... Rxd5 {[%clk 0:00:49.2]}
26. Qxd5 {[%clk 0:00:42.1]} 26... b5 {[%clk 0:00:50.1]} 27. Qd2 {[%clk
0:00:34.3]} 27... Bb2 {[%clk 0:00:49.5]} 28. Ne1 {[%clk 0:00:29.5]} 28... b4
{[%clk 0:00:31.6]} 29. Nc2 {[%clk 0:00:22]} 29... Qxa2 {[%clk 0:00:30.8]} 30.
Qxb4 {[%clk 0:00:22.5]} 30... Bf6 {[%clk 0:00:21]} 31. Qc4 {[%clk 0:00:22.1]}
31... a5 {[%clk 0:00:20.6]} 32. Ne1 {[%clk 0:00:21.1]} 32... h5 {[%clk
0:00:12.5]} 33. Nd3 {[%clk 0:00:19]} 33... Qe2 {[%clk 0:00:13]} 34. h3 {[%clk
0:00:13.3]} 34... Qd1 {[%clk 0:00:08.1]} 35. Nf4 {[%clk 0:00:12.7]} 35... Qd7
{[%clk 0:00:08]} 36. Qd5 {[%clk 0:00:11.3]} 36... Qc7 {[%clk 0:00:07.5]} 37. Nd3
{[%clk 0:00:10]} 37... Qc3 {[%clk 0:00:07.9]} 38. Nc5 {[%clk 0:00:08.7]} 38...
Qc2 {[%clk 0:00:02.8]} 39. Nb7 {[%clk 0:00:08.2]} 39... Bc3 {[%clk 0:00:02]} 40.
Nd6 {[%clk 0:00:07.9]} 1-0